[Event "HUN-ch Rapid 2019"]
[Site "Ajka"]
[Date "2019.07.21"]
[Round "10.19"]
[White "Kovacs, Marton"]
[Black "Farago, Sandor"]
[Result "0-1"]
[ECO "A45"]
[WhiteElo "2147"]
[BlackElo "2210"]
[Annotator "NA"]
[PlyCount "82"]
[EventDate "2019.07.18"]
[EventType "swiss"]
[EventCountry "HUN"]
[SourceTitle "playchess.com"]
[Source "ChessBase"]
[SourceQuality "1"]
[TimeControl "1200+5"]

1. d4 {[%emt 0:00:01]} Nf6 {[%emt 0:00:01]} 2. Bf4 {[%emt 0:00:05]} d6 {[%emt 0:00:02]} 3. Nc3 {[%emt 0:00:22]} Nbd7 {[%emt 0:00:03]} 4. Nf3 {[%emt 0:00:21]} c5 {[%emt 0:00:05]} 5. dxc5 {[%emt 0:00:46]} Nxc5 {[%emt 0:00:04]} 6. e3 {[%emt 0:00:33]} a6 {[%emt 0:00:08]} 7. Be2 {[%emt 0:00:37]} g6 {[%emt 0:00:07]} 8. O-O {[%emt 0:00:58]} Bg7 {[%emt 0:00:02]} 9. h3 {[%emt 0:00:59]} O-O {[%emt 0:00:06]} 10. Bg3 {[%emt 0:00:33]} Nfe4 {[%emt 0:00:36]} 11. Nxe4 {[%emt 0:00:52]} Nxe4 {[%emt 0:00:02]} 12. c3 {[%emt 0:00:31]} Nxg3 {[%emt 0:00:02]} 13. fxg3 {[%emt 0:00:01]} Qb6 {[%emt 0:00:25]} 14. Qd2 {[%emt 0:00:19]} Bh6 {[%emt 0:00:45]} 15. Nd4 {[%emt 0:02:03]} e5 {[%emt 0:00:08]} 16. Nc2 {[%emt 0:00:14]} Be6 {[%emt 0:00:12]} 17. Kh2 {[%emt 0:01:08]} Rad8 {[%emt 0:00:24]} 18. g4 {[%emt 0:03:18]} d5 {[%emt 0:00:33]} 19. h4 {[%emt 0:00:02]} Qc7 {[%emt 0:01:24]} 20. g5 {[%emt 0:00:31]} Bg7 {[%emt 0:00:02]} 21. Kh1 {[%emt 0:00:07]} h6 {[%emt 0:01:11]} 22. Qe1 {[%emt 0:00:55]} hxg5 {[%emt 0:02:35]} 23. hxg5 {[%emt 0:00:01]} Bf5 {[%emt 0:00:20]} 24. Nb4 {[%emt 0:01:07]} d4 {[%emt 0:01:01]} 25. g4 {[%emt 0:01:03]} Be4+ {[%emt 0:00:05]} 26. Bf3 {[%emt 0:00:01]} Bxf3+ {[%emt 0:00:10]} 27. Rxf3 {[%emt 0:00:00]} a5 {[%emt 0:00:41]} 28. Nc2 {[%emt 0:00:43]} d3 {[%emt 0:00:15]} 29. Na3 {[%emt 0:00:18]} Qc6 {[%emt 0:00:31]} 30. e4 {[%emt 0:00:46]} d2 {[%emt 0:00:03]} 31. Qe2 {[%emt 0:00:02]} d1=Q+ {[%emt 0:00:03]} 32. Rxd1 {[%emt 0:00:01]} Rxd1+ {[%emt 0:00:02]} 33. Qxd1 {[%emt 0:00:02]} Qxe4 {[%emt 0:00:02]} 34. Qd3 {[%emt 0:00:48]} Qxg4 {[%emt 0:00:04]} 35. Rg3 {[%emt 0:00:02]} Qh4+ {[%emt 0:00:32]} 36. Kg2 {[%emt 0:00:01]} e4 {[%emt 0:01:24]} 37. Qd2 {[%emt 0:00:19]} Re8 {[%emt 0:00:03]} 38. Qe3 {[%emt 0:00:13]} Rd8 {[%emt 0:00:14]} 39. Nc2 {[%emt 0:01:38]} Be5 {[%emt 0:01:03]} 40. Rh3 {[%emt 0:00:19]} Qg4+ {[%emt 0:00:02]} 41. Kf2 {[%emt 0:00:12]} Rd3 {[%emt 0:00:15]} 0-1

[Event "HUN-ch Rapid 2019"]
[Site "Ajka"]
[Date "2019.07.21"]
[Round "10.20"]
[White "Nemeth, Zoltan"]
[Black "Bognar, Csaba"]
[Result "1-0"]
[ECO "A41"]
[WhiteElo "2275"]
[BlackElo "2166"]
[Annotator "NA"]
[PlyCount "75"]
[EventDate "2019.07.18"]
[EventType "swiss"]
[EventCountry "HUN"]
[SourceTitle "playchess.com"]
[Source "ChessBase"]
[SourceQuality "1"]
[TimeControl "1200+5"]

1. d4 {[%emt 0:00:09]} d6 {[%emt 0:00:02]} 2. g3 {[%emt 0:00:04]} g6 {[%emt 0:00:03]} 3. Bg2 {[%emt 0:00:03]} Bg7 {[%emt 0:00:01]} 4. b3 {[%emt 0:00:00]} f5 {[%emt 0:00:31]} 5. Bb2 {[%emt 0:00:23]} Nf6 {[%emt 0:00:08]} 6. Nd2 {[%emt 0:00:38]} c6 {[%emt 0:00:07]} 7. a4 {[%emt 0:00:01]} O-O {[%emt 0:00:11]} 8. Ngf3 {[%emt 0:00:08]} h6 {[%emt 0:01:07]} 9. Nc4 {[%emt 0:00:18]} Nbd7 {[%emt 0:00:34]} 10. O-O {[%emt 0:01:07]} g5 {[%emt 0:00:33]} 11. Ne1 {[%emt 0:00:08]} d5 {[%emt 0:00:51]} 12. Nd2 {[%emt 0:00:41]} f4 {[%emt 0:01:25]} 13. Nd3 {[%emt 0:00:33]} fxg3 {[%emt 0:01:28]} 14. fxg3 {[%emt 0:00:53]} Ng4 {[%emt 0:00:14]} 15. Rxf8+ {[%emt 0:00:03]} Qxf8 {[%emt 0:00:34]} 16. Nf1 {[%emt 0:00:36]} e5 {[%emt 0:00:33]} 17. e3 {[%emt 0:02:25]} Qf5 {[%emt 0:02:56]} 18. h3 {[%emt 0:01:03]} Ngf6 {[%emt 0:00:17]} 19. g4 {[%emt 0:02:31]} Qe6 {[%emt 0:00:19]} 20. Nxe5 {[%emt 0:00:02]} Nxe5 {[%emt 0:00:03]} 21. dxe5 {[%emt 0:00:01]} Nd7 {[%emt 0:00:26]} 22. e4 {[%emt 0:00:03]} dxe4 {[%emt 0:00:44]} 23. Bxe4 {[%emt 0:00:40]} Bxe5 {[%emt 0:02:33]} 24. Bxe5 {[%emt 0:02:46]} Qxe5 {[%emt 0:00:56]} 25. Bf5 {[%emt 0:01:35]} Nf8 {[%emt 0:00:51]} 26. Bxc8 {[%emt 0:00:59]} Rxc8 {[%emt 0:00:01]} 27. Qe1 {[%emt 0:00:00]} Re8 {[%emt 0:00:21]} 28. Qxe5 {[%emt 0:00:02]} Rxe5 {[%emt 0:00:01]} 29. Rd1 {[%emt 0:00:19]} Kf7 {[%emt 0:00:33]} 30. Kf2 {[%emt 0:00:23]} Ng6 {[%emt 0:00:20]} 31. Ne3 {[%emt 0:00:49]} Nf4 {[%emt 0:00:23]} 32. Kf3 {[%emt 0:00:05]} Ke6 {[%emt 0:01:37]} 33. h4 {[%emt 0:00:05]} Nd5 {[%emt 0:00:10]} 34. Nc4 {[%emt 0:00:15]} Nc3 {[%emt 0:00:13]} 35. Rd6+ {[%emt 0:00:31]} Ke7 {[%emt 0:00:09]} 36. Rd3 {[%emt 0:00:01]} Rc5 {[%emt 0:01:35]} 37. Rxc3 {[%emt 0:00:01]} b5 {[%emt 0:00:03]} 38. hxg5 {[%emt 0:00:53]} 1-0

[Event "HUN-ch Rapid 2019"]
[Site "Ajka"]
[Date "2019.07.21"]
[Round "11.2"]
[White "Papp, Gabor"]
[Black "Hera, Imre Jr."]
[Result "1/2-1/2"]
[ECO "C41"]
[WhiteElo "2587"]
[BlackElo "2610"]
[Annotator "ChessBase"]
[PlyCount "52"]
[EventDate "2019.07.18"]
[EventType "swiss"]
[EventCountry "HUN"]
[SourceTitle "playchess.com"]
[Source "ChessBase"]
[SourceQuality "1"]
[TimeControl "1200+5"]

1. e4 {[%emt 0:00:03]} e5 {[%emt 0:00:16]} 2. Nf3 {[%emt 0:00:02]} d6 {[%emt 0:00:01]} 3. d4 {[%emt 0:00:06]} exd4 {[%emt 0:00:02]} 4. Nxd4 {[%emt 0:00:01]} Nf6 {[%emt 0:00:01]} 5. Nc3 {[%emt 0:00:01]} Be7 {[%emt 0:00:01]} 6. Be3 {[%emt 0:00:24]} O-O {[%emt 0:00:04]} 7. f3 {[%emt 0:00:06]} c6 {[%emt 0:00:56]} 8. Qd2 {[%emt 0:00:10]} b5 {[%emt 0:00:10]} 9. g4 {[%emt 0:00:17]} b4 {[%emt 0:00:04]} 10. Nce2 {[%emt 0:00:07]} c5 {[%emt 0:01:17]} 11. Nf5 {[%emt 0:00:02]} Bxf5 {[%emt 0:00:02]} 12. gxf5 {[%emt 0:00:26]} Nc6 {[%emt 0:00:30]} 13. O-O-O {[%emt 0:01:22]} Ne5 {[%emt 0:01:23]} 14. Nf4 {[%emt 0:00:02]} Qa5 {[%emt 0:02:14]} 15. Kb1 {[%emt 0:00:49]} Kh8 {[%emt 0:01:01]} 16. Nd5 {[%emt 0:00:50]} Nxf3 {[%emt 0:00:39]} 17. Qg2 {[%emt 0:00:06]} Nxd5 {[%emt 0:00:06]} 18. Rxd5 {[%emt 0:00:16]} Ne5 {[%emt 0:00:58]} 19. Rg1 {[%emt 0:00:04]} Rg8 {[%emt 0:00:04]} 20. Bxc5 {[%emt 0:01:58]} dxc5 {[%emt 0:00:06]} 21. Rxe5 {[%emt 0:00:01]} Bf6 {[%emt 0:00:42]} 22. Rd5 {[%emt 0:00:08]} Bd4 {[%emt 0:00:46]} 23. Rh1 {[%emt 0:00:14]} b3 {[%emt 0:00:28]} 24. axb3 {[%emt 0:02:07]} Qe1+ {[%emt 0:00:26]} 25. Ka2 {[%emt 0:00:01]} Qa5+ {[%emt 0:00:01]} 26. Kb1 {[%emt 0:00:01]} Qe1+ 1/2-1/2

[Event "HUN-ch Rapid 2019"]
[Site "Ajka"]
[Date "2019.07.21"]
[Round "11.3"]
[White "Gledura, Benjamin"]
[Black "Horvath, Peter"]
[Result "1-0"]
[ECO "A06"]
[WhiteElo "2654"]
[BlackElo "2418"]
[Annotator "ChessBase"]
[PlyCount "83"]
[EventDate "2019.07.18"]
[EventType "swiss"]
[EventCountry "HUN"]
[SourceTitle "playchess.com"]
[Source "ChessBase"]
[SourceQuality "1"]
[TimeControl "1200+5"]

1. Nf3 {[%emt 0:00:09]} d5 {[%emt 0:00:04]} 2. g3 {[%emt 0:00:02]} Nf6 {[%emt 0:00:11]} 3. Bg2 {[%emt 0:00:02]} Bg4 {[%emt 0:00:28]} 4. d4 {[%emt 0:00:18]} c6 {[%emt 0:01:19]} 5. h3 {[%emt 0:00:18]} Bxf3 {[%emt 0:00:14]} 6. Bxf3 {[%emt 0:00:03]} Nbd7 {[%emt 0:00:12]} 7. c4 {[%emt 0:00:19]} e6 {[%emt 0:00:39]} 8. O-O {[%emt 0:01:43]} Bd6 {[%emt 0:00:19]} 9. b3 {[%emt 0:00:26]} O-O {[%emt 0:00:07]} 10. Bb2 {[%emt 0:00:03]} Qe7 {[%emt 0:02:06]} 11. Qc2 {[%emt 0:00:29]} dxc4 {[%emt 0:00:23]} 12. bxc4 {[%emt 0:00:10]} e5 {[%emt 0:00:16]} 13. e3 {[%emt 0:00:02]} e4 {[%emt 0:01:14]} 14. Bg2 {[%emt 0:00:06]} Qe6 {[%emt 0:00:37]} 15. Nd2 {[%emt 0:01:15]} Rfe8 {[%emt 0:00:04]} 16. Qb3 {[%emt 0:01:05]} Rab8 {[%emt 0:01:24]} 17. c5 {[%emt 0:00:07]} Bc7 {[%emt 0:00:01]} 18. Qxe6 {[%emt 0:00:04]} Rxe6 {[%emt 0:00:03]} 19. Rab1 {[%emt 0:00:06]} b6 {[%emt 0:01:53]} 20. cxb6 {[%emt 0:00:31]} axb6 {[%emt 0:00:09]} 21. Rfc1 {[%emt 0:00:03]} Ra8 {[%emt 0:00:43]} 22. a3 {[%emt 0:01:05]} Ra7 {[%emt 0:00:32]} 23. Rc2 {[%emt 0:00:12]} c5 {[%emt 0:00:53]} 24. dxc5 {[%emt 0:01:40]} Nxc5 {[%emt 0:00:04]} 25. Rc4 {[%emt 0:00:11]} h6 {[%emt 0:02:36]} 26. Bxf6 {[%emt 0:00:21]} gxf6 {[%emt 0:00:02]} 27. Nxe4 {[%emt 0:00:07]} Nxe4 {[%emt 0:00:14]} 28. Bxe4 {[%emt 0:00:03]} Kg7 {[%emt 0:01:13]} 29. a4 {[%emt 0:00:10]} Rd6 {[%emt 0:00:24]} 30. Kg2 {[%emt 0:02:18]} Rd2 {[%emt 0:00:29]} 31. Kf3 {[%emt 0:00:56]} Bd8 {[%emt 0:00:11]} 32. Bc6 {[%emt 0:00:20]} Re7 {[%emt 0:00:25]} 33. Rb5 {[%emt 0:00:19]} Re5 {[%emt 0:01:08]} 34. Rxe5 {[%emt 0:00:21]} fxe5 {[%emt 0:00:02]} 35. Be4 {[%emt 0:00:19]} Be7 {[%emt 0:00:48]} 36. Rc7 {[%emt 0:00:44]} Kf6 {[%emt 0:00:01]} 37. Rb7 {[%emt 0:00:46]} Bc5 {[%emt 0:00:15]} 38. Bc6 {[%emt 0:00:39]} Ke6 {[%emt 0:00:12]} 39. g4 {[%emt 0:00:12]} Rc2 {[%emt 0:00:53]} 40. Bd7+ {[%emt 0:01:18]} Kf6 {[%emt 0:00:08]} 41. Be8 {[%emt 0:00:10]} e4+ {[%emt 0:00:04]} 42. Kxe4 {[%emt 0:00:05]} 1-0

[Event "HUN-ch Rapid 2019"]
[Site "Ajka"]
[Date "2019.07.21"]
[Round "11.4"]
[White "Aczel, Gergely"]
[Black "Karacsonyi, Gellert"]
[Result "1-0"]
[ECO "E46"]
[WhiteElo "2540"]
[BlackElo "2315"]
[Annotator "ChessBase"]
[PlyCount "75"]
[EventDate "2019.07.18"]
[EventType "swiss"]
[EventCountry "HUN"]
[SourceTitle "playchess.com"]
[Source "ChessBase"]
[SourceQuality "1"]
[TimeControl "1200+5"]

1. d4 {[%emt 0:01:28]} Nf6 {[%emt 0:00:01]} 2. c4 {[%emt 0:00:00]} e6 {[%emt 0:00:02]} 3. Nc3 {[%emt 0:00:01]} Bb4 {[%emt 0:00:03]} 4. e3 {[%emt 0:00:01]} O-O {[%emt 0:00:02]} 5. Bd2 {[%emt 0:00:01]} c6 {[%emt 0:00:27]} 6. Nf3 {[%emt 0:01:00]} d5 {[%emt 0:00:03]} 7. Bd3 {[%emt 0:00:10]} Nbd7 {[%emt 0:00:15]} 8. O-O {[%emt 0:00:03]} b6 {[%emt 0:00:13]} 9. Nxd5 {[%emt 0:00:26]} Nxd5 {[%emt 0:04:17]} 10. cxd5 {[%emt 0:00:02]} Bxd2 {[%emt 0:00:15]} 11. dxe6 {[%emt 0:01:13]} Bb4 {[%emt 0:02:08]} 12. exd7 {[%emt 0:00:03]} Bxd7 {[%emt 0:00:01]} 13. Ne5 {[%emt 0:02:57]} Bd6 {[%emt 0:00:28]} 14. Rc1 {[%emt 0:00:50]} Bxe5 {[%emt 0:02:18]} 15. dxe5 {[%emt 0:00:01]} c5 {[%emt 0:00:02]} 16. Qc2 {[%emt 0:01:39]} h6 {[%emt 0:00:13]} 17. Bc4 {[%emt 0:00:37]} Qe7 {[%emt 0:01:07]} 18. f4 {[%emt 0:00:21]} Kh8 {[%emt 0:00:04]} 19. Qe4 {[%emt 0:00:47]} Rae8 {[%emt 0:00:32]} 20. h3 {[%emt 0:01:06]} Rc8 {[%emt 0:01:42]} 21. Rfd1 {[%emt 0:00:18]} Bc6 {[%emt 0:00:12]} 22. Bd5 {[%emt 0:00:49]} Bxd5 {[%emt 0:00:02]} 23. Rxd5 {[%emt 0:00:06]} Rfd8 {[%emt 0:00:26]} 24. Rcd1 {[%emt 0:00:04]} Qh4 {[%emt 0:02:08]} 25. Kh2 {[%emt 0:00:26]} Qe7 {[%emt 0:01:58]} 26. a4 {[%emt 0:00:09]} Kg8 {[%emt 0:00:32]} 27. b3 {[%emt 0:00:29]} Kh8 {[%emt 0:00:11]} 28. Qf5 {[%emt 0:00:21]} Kg8 {[%emt 0:00:32]} 29. Rd7 {[%emt 0:00:15]} Qe8 {[%emt 0:00:15]} 30. R1d6 {[%emt 0:00:53]} Rxd7 {[%emt 0:00:26]} 31. Rxd7 {[%emt 0:00:07]} g6 {[%emt 0:01:10]} 32. Qd3 {[%emt 0:00:01]} a5 {[%emt 0:00:18]} 33. Qd5 {[%emt 0:00:43]} c4 {[%emt 0:00:14]} 34. bxc4 {[%emt 0:00:12]} Qf8 {[%emt 0:00:05]} 35. Rd6 {[%emt 0:00:16]} Rc5 {[%emt 0:00:04]} 36. Qd4 {[%emt 0:00:10]} Qe7 {[%emt 0:00:05]} 37. Rd8+ {[%emt 0:00:32]} Kh7 {[%emt 0:00:01]} 38. e6 {[%emt 0:00:05]} 1-0

[Event "HUN-ch Rapid 2019"]
[Site "Ajka"]
[Date "2019.07.21"]
[Round "11.5"]
[White "Banusz, Tamas"]
[Black "Emodi, Barnabas"]
[Result "1-0"]
[ECO "A49"]
[WhiteElo "2626"]
[BlackElo "2365"]
[Annotator "ChessBase"]
[PlyCount "98"]
[EventDate "2019.07.18"]
[EventType "swiss"]
[EventCountry "HUN"]
[SourceTitle "playchess.com"]
[Source "ChessBase"]
[SourceQuality "1"]
[TimeControl "1200+5"]

1. d4 {[%emt 0:00:01]} Nf6 {[%emt 0:00:02]} 2. Nf3 {[%emt 0:00:02]} g6 {[%emt 0:00:20]} 3. g3 {[%emt 0:00:02]} Bg7 {[%emt 0:00:14]} 4. Bg2 {[%emt 0:00:02]} O-O {[%emt 0:00:05]} 5. c4 {[%emt 0:00:01]} e6 {[%emt 0:00:24]} 6. O-O {[%emt 0:00:05]} d5 {[%emt 0:00:01]} 7. b3 {[%emt 0:00:15]} a5 {[%emt 0:00:12]} 8. Nc3 {[%emt 0:00:08]} b6 {[%emt 0:00:34]} 9. Bb2 {[%emt 0:00:22]} Bb7 {[%emt 0:00:53]} 10. Ne5 {[%emt 0:00:16]} Nbd7 {[%emt 0:00:42]} 11. Nd3 {[%emt 0:00:49]} Qb8 {[%emt 0:01:10]} 12. Qc2 {[%emt 0:01:13]} dxc4 {[%emt 0:00:23]} 13. bxc4 {[%emt 0:00:08]} Bxg2 {[%emt 0:00:07]} 14. Kxg2 {[%emt 0:00:03]} Qb7+ {[%emt 0:00:53]} 15. f3 {[%emt 0:00:19]} c5 {[%emt 0:00:58]} 16. dxc5 {[%emt 0:00:31]} bxc5 {[%emt 0:00:23]} 17. Rab1 {[%emt 0:00:37]} Ng4 {[%emt 0:02:50]} 18. Bc1 {[%emt 0:02:51]} Qc6 {[%emt 0:00:32]} 19. Nb5 {[%emt 0:00:39]} Bd4 {[%emt 0:02:45]} 20. h3 {[%emt 0:00:47]} Ne3+ {[%emt 0:00:25]} 21. Bxe3 {[%emt 0:00:01]} Bxe3 {[%emt 0:00:01]} 22. Rfd1 {[%emt 0:00:11]} Rfd8 {[%emt 0:03:09]} 23. Qc3 {[%emt 0:00:08]} Bh6 {[%emt 0:01:29]} 24. Ne5 {[%emt 0:01:14]} Nxe5 {[%emt 0:00:30]} 25. Qxe5 {[%emt 0:00:01]} Rd7 {[%emt 0:00:22]} 26. Rd6 {[%emt 0:05:04]} Rxd6 {[%emt 0:00:09]} 27. Qxd6 {[%emt 0:00:00]} Qxd6 {[%emt 0:00:45]} 28. Nxd6 {[%emt 0:00:01]} Rd8 {[%emt 0:00:14]} 29. Ne4 {[%emt 0:00:01]} Rd4 {[%emt 0:00:10]} 30. Rb8+ {[%emt 0:00:01]} Kg7 {[%emt 0:00:03]} 31. Rb7 {[%emt 0:00:01]} Be3 {[%emt 0:00:35]} 32. Ra7 {[%emt 0:01:54]} Rxc4 {[%emt 0:00:43]} 33. Rxf7+ {[%emt 0:00:20]} Kg8 {[%emt 0:00:11]} 34. Rc7 {[%emt 0:00:55]} Bd4 {[%emt 0:00:15]} 35. f4 {[%emt 0:00:20]} Rc1 {[%emt 0:00:16]} 36. Kf3 {[%emt 0:00:07]} Rf1+ {[%emt 0:00:07]} 37. Kg4 {[%emt 0:00:03]} Re1 {[%emt 0:00:02]} 38. Kg5 {[%emt 0:00:21]} Rxe2 {[%emt 0:00:10]} 39. Nf6+ {[%emt 0:00:01]} Kf8 {[%emt 0:00:02]} 40. Rxh7 {[%emt 0:00:23]} c4 {[%emt 0:00:02]} 41. Kxg6 {[%emt 0:00:02]} Bxf6 {[%emt 0:00:02]} 42. Kxf6 {[%emt 0:00:02]} Ke8 {[%emt 0:00:08]} 43. Rc7 {[%emt 0:00:00]} Rxa2 {[%emt 0:00:04]} 44. Rxc4 {[%emt 0:00:22]} Ra3 {[%emt 0:00:01]} 45. g4 {[%emt 0:00:06]} Rxh3 {[%emt 0:00:05]} 46. Kxe6 {[%emt 0:00:03]} Kf8 {[%emt 0:00:05]} 47. f5 {[%emt 0:00:35]} Kg7 {[%emt 0:00:11]} 48. Rc7+ {[%emt 0:00:01]} Kh6 {[%emt 0:00:03]} 49. Kf6 {[%emt 0:00:12]} a4 1-0

[Event "HUN-ch Rapid 2019"]
[Site "Ajka"]
[Date "2019.07.21"]
[Round "11.6"]
[White "Horvath, Adam"]
[Black "Ruck, Robert"]
[Result "1-0"]
[ECO "B03"]
[WhiteElo "2517"]
[BlackElo "2524"]
[Annotator "ChessBase"]
[PlyCount "115"]
[EventDate "2019.07.18"]
[EventType "swiss"]
[EventCountry "HUN"]
[SourceTitle "playchess.com"]
[Source "ChessBase"]
[SourceQuality "1"]
[TimeControl "1200+5"]

1. e4 {[%emt 0:00:03]} Nf6 {[%emt 0:00:06]} 2. e5 {[%emt 0:00:01]} Nd5 {[%emt 0:00:01]} 3. d4 {[%emt 0:00:01]} d6 {[%emt 0:00:01]} 4. c4 {[%emt 0:00:01]} Nb6 {[%emt 0:00:01]} 5. exd6 {[%emt 0:00:01]} exd6 {[%emt 0:00:01]} 6. Nc3 {[%emt 0:00:01]} Be7 {[%emt 0:00:02]} 7. Be3 {[%emt 0:00:08]} O-O {[%emt 0:00:08]} 8. Bd3 {[%emt 0:00:07]} Bf6 {[%emt 0:00:06]} 9. Nge2 {[%emt 0:00:05]} Nc6 {[%emt 0:00:54]} 10. b3 {[%emt 0:00:20]} Bg4 {[%emt 0:00:08]} 11. Qd2 {[%emt 0:00:16]} Re8 {[%emt 0:00:12]} 12. O-O {[%emt 0:00:08]} Bh5 {[%emt 0:00:03]} 13. Nf4 {[%emt 0:00:29]} Bg6 {[%emt 0:00:02]} 14. Nxg6 {[%emt 0:00:08]} hxg6 {[%emt 0:00:01]} 15. Be4 {[%emt 0:00:02]} Qd7 {[%emt 0:00:34]} 16. h3 {[%emt 0:01:48]} Re7 {[%emt 0:02:06]} 17. Bf3 {[%emt 0:00:01]} Rae8 {[%emt 0:00:18]} 18. Rad1 {[%emt 0:00:24]} Qc8 {[%emt 0:02:25]} 19. Qc1 {[%emt 0:00:31]} Rd8 {[%emt 0:04:03]} 20. Bg4 {[%emt 0:00:56]} Qb8 {[%emt 0:00:22]} 21. Qb1 {[%emt 0:01:31]} Ree8 {[%emt 0:01:22]} 22. g3 {[%emt 0:01:00]} Ne7 {[%emt 0:02:50]} 23. Ne4 {[%emt 0:00:28]} Nd7 {[%emt 0:00:23]} 24. d5 {[%emt 0:03:24]} Ne5 {[%emt 0:00:18]} 25. Be2 {[%emt 0:00:03]} Nf5 {[%emt 0:00:49]} 26. Nxf6+ {[%emt 0:00:16]} gxf6 {[%emt 0:00:02]} 27. Bc1 {[%emt 0:00:07]} Re7 {[%emt 0:00:53]} 28. Bg4 {[%emt 0:02:34]} Qc8 {[%emt 0:01:34]} 29. Bxf5 {[%emt 0:01:02]} Qxf5 {[%emt 0:00:31]} 30. Qxf5 {[%emt 0:00:02]} gxf5 {[%emt 0:00:01]} 31. Kg2 {[%emt 0:00:01]} Rde8 {[%emt 0:00:10]} 32. Rfe1 {[%emt 0:00:59]} Nd7 {[%emt 0:00:27]} 33. Rxe7 {[%emt 0:00:08]} Rxe7 {[%emt 0:00:02]} 34. Be3 {[%emt 0:00:08]} b6 {[%emt 0:00:12]} 35. Kf1 {[%emt 0:00:57]} Kg7 {[%emt 0:00:17]} 36. Rd4 {[%emt 0:00:12]} a5 {[%emt 0:00:31]} 37. Rh4 {[%emt 0:00:44]} Re8 {[%emt 0:00:11]} 38. Ke2 {[%emt 0:00:29]} Ne5 {[%emt 0:00:09]} 39. Rd4 {[%emt 0:00:18]} Rh8 {[%emt 0:00:07]} 40. h4 {[%emt 0:00:03]} Re8 {[%emt 0:00:01]} 41. f3 {[%emt 0:00:14]} Kg6 {[%emt 0:00:06]} 42. Kf2 {[%emt 0:00:10]} Kh5 {[%emt 0:00:39]} 43. Rd1 {[%emt 0:00:13]} a4 {[%emt 0:00:06]} 44. Bd4 {[%emt 0:00:33]} Ra8 {[%emt 0:00:14]} 45. Ra1 {[%emt 0:00:22]} Nd3+ {[%emt 0:00:08]} 46. Ke2 {[%emt 0:00:07]} Ne5 {[%emt 0:00:01]} 47. f4 {[%emt 0:01:02]} Ng4 {[%emt 0:00:06]} 48. Kd3 {[%emt 0:00:46]} Nh2 {[%emt 0:00:08]} 49. Bxf6 {[%emt 0:00:07]} Kg4 {[%emt 0:00:03]} 50. h5 {[%emt 0:00:08]} Kxh5 {[%emt 0:00:06]} 51. Rh1 {[%emt 0:00:17]} Kg6 {[%emt 0:00:01]} 52. Bd4 {[%emt 0:00:08]} Ng4 {[%emt 0:00:07]} 53. b4 {[%emt 0:00:04]} Nf6 {[%emt 0:00:07]} 54. Re1 {[%emt 0:00:09]} b5 {[%emt 0:00:07]} 55. Re7 {[%emt 0:00:04]} bxc4+ {[%emt 0:00:06]} 56. Kxc4 {[%emt 0:00:01]} Ne4 {[%emt 0:00:01]} 57. Rxc7 {[%emt 0:00:04]} Nxg3 {[%emt 0:00:02]} 58. b5 {[%emt 0:00:02]} 1-0

[Event "HUN-ch Rapid 2019"]
[Site "Ajka"]
[Date "2019.07.21"]
[Round "11.7"]
[White "Mihok, Oliver"]
[Black "Medvegy, Zoltan"]
[Result "1/2-1/2"]
[ECO "C10"]
[WhiteElo "2550"]
[BlackElo "2539"]
[Annotator "ChessBase"]
[PlyCount "97"]
[EventDate "2019.07.18"]
[EventType "swiss"]
[EventCountry "HUN"]
[SourceTitle "playchess.com"]
[Source "ChessBase"]
[SourceQuality "1"]
[TimeControl "1200+5"]

1. e4 {[%emt 0:01:21]} e6 {[%emt 0:00:00]} 2. d4 {[%emt 0:00:01]} d5 {[%emt 0:00:01]} 3. Nc3 {[%emt 0:00:02]} dxe4 {[%emt 0:00:01]} 4. Nxe4 {[%emt 0:00:01]} Bd7 {[%emt 0:00:01]} 5. Nf3 {[%emt 0:00:08]} Bc6 {[%emt 0:00:01]} 6. Bd3 {[%emt 0:00:01]} Nd7 {[%emt 0:00:01]} 7. c3 {[%emt 0:00:02]} Ngf6 {[%emt 0:00:01]} 8. Nxf6+ {[%emt 0:00:02]} Nxf6 {[%emt 0:00:02]} 9. Bf4 {[%emt 0:00:08]} Bxf3 {[%emt 0:00:50]} 10. Qxf3 {[%emt 0:00:02]} c6 {[%emt 0:00:01]} 11. O-O {[%emt 0:00:11]} Bd6 {[%emt 0:00:55]} 12. Be5 {[%emt 0:00:03]} Bxe5 {[%emt 0:00:33]} 13. dxe5 {[%emt 0:00:01]} Nd7 {[%emt 0:00:01]} 14. Qg3 {[%emt 0:00:12]} Qc7 {[%emt 0:03:47]} 15. Rfe1 {[%emt 0:01:14]} g6 {[%emt 0:00:54]} 16. Rad1 {[%emt 0:01:42]} O-O-O {[%emt 0:05:07]} 17. h4 {[%emt 0:01:32]} h5 {[%emt 0:03:06]} 18. Bc2 {[%emt 0:01:23]} Nb6 {[%emt 0:00:05]} 19. b3 {[%emt 0:00:26]} Rxd1 {[%emt 0:02:44]} 20. Rxd1 {[%emt 0:00:01]} Rd8 {[%emt 0:00:01]} 21. Rd6 {[%emt 0:01:11]} Kb8 {[%emt 0:00:52]} 22. c4 {[%emt 0:01:44]} Nc8 {[%emt 0:00:09]} 23. Rxd8 {[%emt 0:00:23]} Qxd8 {[%emt 0:00:00]} 24. Qf4 {[%emt 0:00:03]} Qe7 {[%emt 0:00:17]} 25. g3 {[%emt 0:00:40]} Nb6 {[%emt 0:00:12]} 26. Kg2 {[%emt 0:02:33]} Nd7 {[%emt 0:00:04]} 27. b4 {[%emt 0:00:54]} Kc7 {[%emt 0:00:58]} 28. c5 {[%emt 0:00:19]} b6 {[%emt 0:00:05]} 29. cxb6+ {[%emt 0:00:08]} Nxb6 {[%emt 0:00:06]} 30. a3 {[%emt 0:00:17]} Nd5 {[%emt 0:00:23]} 31. Qd4 {[%emt 0:00:09]} Kb7 {[%emt 0:00:05]} 32. Be4 {[%emt 0:00:24]} Qc7 {[%emt 0:00:03]} 33. Bf3 {[%emt 0:00:40]} Qb6 {[%emt 0:00:35]} 34. Qc4 {[%emt 0:00:13]} a5 {[%emt 0:00:33]} 35. Bxd5 {[%emt 0:00:37]} exd5 {[%emt 0:00:09]} 36. Qf4 {[%emt 0:00:08]} Qc7 {[%emt 0:00:01]} 37. bxa5 {[%emt 0:00:53]} Ka6 {[%emt 0:00:09]} 38. Qf3 {[%emt 0:00:59]} Kxa5 {[%emt 0:00:08]} 39. Qc3+ {[%emt 0:00:02]} Ka6 {[%emt 0:00:04]} 40. Qc5 {[%emt 0:00:15]} Qxe5 {[%emt 0:00:08]} 41. Qxc6+ {[%emt 0:00:03]} Ka5 {[%emt 0:00:03]} 42. a4 {[%emt 0:00:18]} Qe4+ {[%emt 0:00:02]} 43. Kh2 {[%emt 0:00:01]} Qc4 {[%emt 0:00:05]} 44. Qa8+ {[%emt 0:00:12]} Kb4 {[%emt 0:00:02]} 45. a5 {[%emt 0:00:06]} Qc5 {[%emt 0:00:03]} 46. a6 {[%emt 0:00:52]} Qxf2+ {[%emt 0:00:01]} 47. Kh3 {[%emt 0:00:06]} Qf1+ {[%emt 0:00:08]} 48. Kh2 {[%emt 0:00:01]} Qf2+ {[%emt 0:00:01]} 49. Kh3 {[%emt 0:00:01]} 1/2-1/2